[Event "DFMMLV 2024"]
[Site "Braunfels"]
[Date "2024.06.01"]
[Round "4.38"]
[White "Spiel, Marianne"]
[Black "Grabowski, Petra"]
[Result "1-0"]
[ECO "C10"]
[WhiteElo "1890"]
[BlackElo "1791"]
[Annotator "NA RC"]
[PlyCount "83"]
[EventDate "2024.05.30"]
[EventType "team-tourn"]
[EventCountry "GER"]
[SourceTitle "playchess.com"]
[Source "ChessBase"]
[SourceQuality "1"]
[TimeControl "40/5400+30:1800+30"]

1. e4 {[%emt 0:00:02]} e6 {[%emt 0:00:04]} 2. d4 {[%emt 0:00:07]} d5 {[%emt 0:00:06]} 3. Nd2 {[%emt 0:00:20]} dxe4 {[%emt 0:00:06]} 4. Nxe4 {[%emt 0:00:08]} Nd7 {[%emt 0:00:04]} 5. c4 {[%emt 0:06:39]} Bb4+ {[%emt 0:02:08]} 6. Bd2 {[%emt 0:01:04] C10: French with 3 Nc3: Unusual Black 3rd moves and 3...dxe4.} Bxd2+ {[%emt 0:00:26]} 7. Qxd2 {[%emt 0:00:17]} Ngf6 {[%emt 0:01:14]} 8. Nc3 {[%emt 0:01:23]} O-O {[%emt 0:01:26]} 9. Nf3 {[%emt 0:00:31]} c5 {[%emt 0:03:01]} 10. Be2 {[%emt 0:02:58]} cxd4 {[%emt 0:02:40]} 11. Qxd4 {[%emt 0:02:46]} Qb6 {[%emt 0:07:42]} 12. Qxb6 {[%emt 0:04:17]} Nxb6 {[%emt 0:00:02]} 13. O-O {[%emt 0:00:11]} Bd7 {[%emt 0:05:05]} 14. Rfd1 {[%emt 0:05:44]} Rfd8 {[%emt 0:01:34]} 15. Ne5 {[%emt 0:02:12]} Be8 {[%emt 0:09:21]} 16. Bf3 {[%emt 0:06:50]} Nbd7 {[%emt 0:02:29]} 17. Nd3 {[%emt 0:12:24]} Rac8 {[%emt 0:05:50]} 18. b3 {[%emt 0:02:38]} b6 {[%emt 0:05:31] [#]} 19. Nb5 $1 {[%emt 0:05:16]} Nc5 {[%emt 0:15:22]} 20. Nxc5 {[%emt 0:03:21]} Rxd1+ {[%emt 0:01:07]} 21. Rxd1 {[%emt 0:00:17]} Rxc5 {[%emt 0:09:42]} 22. Nd6 {[%emt 0:08:48]} Bc6 {[%emt 0:02:33]} 23. Ne4 {[%emt 0:06:47]} Kf8 {[%emt 0:10:31]} 24. Nxc5 {[%emt 0:01:50]} Bxf3 {[%emt 0:00:02]} 25. gxf3 {[%emt 0:00:50]} bxc5 {[%emt 0:00:17]} 26. Rd8+ {[%emt 0:00:28]} Ke7 {[%emt 0:00:36]} 27. Ra8 {[%emt 0:00:14]} Kd6 {[%emt 0:02:10]} 28. Rxa7 {[%emt 0:00:24]} Nd7 {[%emt 0:00:02]} 29. Kf1 {[%emt 0:00:47]} g5 {[%emt 0:00:23]} 30. Ke2 {[%emt 0:01:15]} h5 $18 {[%emt 0:01:10]} 31. a3 {[%emt 0:08:38]} f6 {[%emt 0:02:39]} 32. Ra6+ {[%emt 0:00:55]} Ke5 {[%emt 0:00:27]} 33. Rc6 {[%emt 0:02:54]} h4 {[%emt 0:03:02]} 34. a4 {[%emt 0:00:33]} Kf5 {[%emt 0:01:12]} 35. Rc7 {[%emt 0:00:36]} Ne5 {[%emt 0:00:33]} 36. Rxc5 {[%emt 0:00:10]} Kf4 {[%emt 0:00:02]} 37. Rxe5 {[%emt 0:00:23]} fxe5 {[%emt 0:00:15]} 38. a5 {[%emt 0:00:31]} e4 {[%emt 0:00:29]} 39. fxe4 {[%emt 0:00:22]} g4 {[%emt 0:00:44]} 40. a6 {[%emt 0:00:11]} g3 {[%emt 0:08:23]} 41. fxg3+ {[%emt 0:44:59]} hxg3 {[%emt 0:23:06]} 42. hxg3+ {[%emt 0:00:00]} 1-0

[Event "DFMMLV 2024"]
[Site "Braunfels"]
[Date "2024.06.01"]
[Round "4.40"]
[White "Albayrak, Aylin"]
[Black "Lossin, Charlotte"]
[Result "0-1"]
[ECO "A84"]
[WhiteElo "1752"]
[BlackElo "1705"]
[Annotator "NA RC"]
[PlyCount "54"]
[EventDate "2024.05.30"]
[EventType "team-tourn"]
[EventCountry "GER"]
[SourceTitle "playchess.com"]
[Source "ChessBase"]
[SourceQuality "1"]
[TimeControl "40/5400+30:1800+30"]

1. d4 {[%emt 0:00:07]} d5 {[%emt 0:00:04]} 2. c4 {[%emt 0:00:03]} e6 {[%emt 0:00:41]} 3. Nf3 {[%emt 0:00:07]} c6 {[%emt 0:00:50]} 4. Nc3 {[%emt 0:00:24]} f5 {[%emt 0:00:30]} 5. Bf4 {[%emt 0:00:37]} Nf6 {[%emt 0:01:29]} 6. e3 {[%emt 0:00:40]} Bd6 {[%emt 0:02:49]} 7. Bxd6 {[%emt 0:01:02]} Qxd6 {[%emt 0:00:10]} 8. cxd5 {[%emt 0:00:45]} cxd5 {[%emt 0:01:17]} 9. Be2 {[%emt 0:00:46]} a6 {[%emt 0:00:40]} 10. O-O {[%emt 0:00:57]} O-O {[%emt 0:03:54]} 11. Rc1 {[%emt 0:00:56]} Bd7 {[%emt 0:02:33]} 12. Qb3 {[%emt 0:01:02]} Bc6 {[%emt 0:01:50]} 13. Ne5 {[%emt 0:02:33]} Nbd7 {[%emt 0:00:46]} 14. f4 {[%emt 0:02:04]} Ne4 {[%emt 0:04:18]} 15. Nxe4 {[%emt 0:01:05]} fxe4 {[%emt 0:00:18]} 16. Nxc6 {[%emt 0:06:35]} bxc6 {[%emt 0:00:17]} 17. Qb7 {[%emt 0:00:46]} Rfb8 {[%emt 0:02:53]} 18. Qxc6 {[%emt 0:00:39]} Qxc6 {[%emt 0:00:11]} 19. Rxc6 {[%emt 0:00:11]} Rxb2 {[%emt 0:00:23]} 20. Bxa6 {[%emt 0:02:38]} Nb6 {[%emt 0:03:25]} 21. Bb7 {[%emt 0:01:29]} Raxa2 {[%emt 0:00:41]} 22. Rfc1 {[%emt 0:03:22]} Nc4 {[%emt 0:03:49]} 23. Bc8 {[%emt 0:00:58]} Rxg2+ {[%emt 0:00:28]} 24. Kh1 {[%emt 0:02:36]} Rxh2+ {[%emt 0:00:09]} 25. Kg1 {[%emt 0:00:11]} Rag2+ {[%emt 0:00:07]} 26. Kf1 {[%emt 0:01:05]} Nxe3+ {[%emt 0:00:10]} 27. Ke1 {[%emt 0:00:08]} Rh1# {[%emt 0:00:15]} 0-1

[Event "DFMMLV 2024"]
[Site "Braunfels"]
[Date "2024.06.01"]
[Round "4.43"]
[White "Krasnopeyeva, Julia"]
[Black "Dietrich, Mareike"]
[Result "1-0"]
[ECO "B90"]
[WhiteElo "1918"]
[BlackElo "1855"]
[Annotator "NA RC"]
[PlyCount "97"]
[EventDate "2024.05.30"]
[EventType "team-tourn"]
[EventCountry "GER"]
[SourceTitle "playchess.com"]
[Source "ChessBase"]
[SourceQuality "1"]
[TimeControl "40/5400+30:1800+30"]

1. e4 {[%emt 0:00:02]} c5 {[%emt 0:00:06]} 2. Nf3 {[%emt 0:00:07]} d6 {[%emt 0:00:03]} 3. d4 {[%emt 0:00:09]} cxd4 {[%emt 0:00:04]} 4. Nxd4 {[%emt 0:00:05]} Nf6 {[%emt 0:00:04]} 5. Nc3 {[%emt 0:00:08]} a6 {[%emt 0:00:03]} 6. Be3 {[%emt 0:00:48]} e6 {[%emt 0:00:36]} 7. h3 {[%emt 0:00:48] 7.a3 is a critical line.} b5 {[%emt 0:00:55] B90: Sicilian Najdorf: Unusual White 6th moves, 6 Be3 Ng4 and 6 Be3 e5.} 8. a3 {[%emt 0:01:36]} Bb7 {[%emt 0:00:04]} 9. Bd3 {[%emt 0:01:01]} Nbd7 {[%emt 0:00:54]} 10. O-O {[%emt 0:02:19]} Qc7 {[%emt 0:03:18]} 11. Re1 {[%emt 0:01:16]} Be7 {[%emt 0:01:57]} 12. Qe2 {[%emt 0:02:00]} d5 $146 {[%emt 0:02:59]} ({Predecessor:} 12... O-O 13. Rad1 Rac8 14. Nb3 Nc5 15. Bxc5 dxc5 16. e5 c4 17. Bxc4 bxc4 18. exf6 Bxf6 {0-1 Celik,A (2126)-Aldokhin,I (2413) Titled Tuesday intern op 06th Feb Early blitz 2024 (9)}) 13. exd5 {[%emt 0:00:35]} Nxd5 {[%emt 0:00:09]} 14. Nxd5 {[%emt 0:02:57]} Bxd5 {[%emt 0:00:06]} 15. a4 {[%emt 0:02:39]} bxa4 {[%emt 0:12:45]} 16. Rxa4 {[%emt 0:02:04]} Nc5 {[%emt 0:00:16]} 17. Raa1 {[%emt 0:08:28]} Nxd3 {[%emt 0:00:58]} 18. Qxd3 {[%emt 0:00:43]} Qb7 {[%emt 0:02:03]} 19. f3 {[%emt 0:00:18]} Qb4 {[%emt 0:05:25]} 20. c3 {[%emt 0:02:57]} Qc4 {[%emt 0:03:14]} 21. Qc2 {[%emt 0:00:29]} O-O {[%emt 0:01:41]} 22. Ra4 {[%emt 0:00:51]} Qc7 {[%emt 0:00:49]} 23. Rea1 {[%emt 0:01:03]} Bb7 {[%emt 0:04:44]} 24. Ra5 {[%emt 0:04:55]} Rfd8 {[%emt 0:03:14]} 25. Qe2 {[%emt 0:04:35]} Bc5 {[%emt 0:05:42]} 26. Rxc5 {[%emt 0:02:30]} Qxc5 {[%emt 0:02:01] [#]} 27. Nxe6 $1 {[%emt 0:00:10]} Qe5 {[%emt 0:01:21]} 28. Nxd8 {[%emt 0:00:20]} Rxd8 {[%emt 0:00:01]} 29. Re1 {[%emt 0:02:22]} Re8 {[%emt 0:02:34]} 30. Qd2 {[%emt 0:01:39]} Qd5 {[%emt 0:04:24]} 31. Qxd5 {[%emt 0:03:20]} Bxd5 {[%emt 0:00:01]} 32. Kf2 {[%emt 0:00:48]} Rb8 {[%emt 0:02:40]} 33. b4 {[%emt 0:01:49]} Bc4 {[%emt 0:03:32]} 34. Bc5 {[%emt 0:05:28]} Rd8 {[%emt 0:06:33]} 35. Bd4 {[%emt 0:00:52]} Kf8 {[%emt 0:02:15]} 36. f4 {[%emt 0:00:25]} f5 {[%emt 0:03:54]} 37. Re5 {[%emt 0:01:18]} g6 {[%emt 0:01:48]} 38. Rc5 {[%emt 0:00:26]} Bb5 {[%emt 0:01:34]} 39. g4 {[%emt 0:03:00]} fxg4 {[%emt 0:03:07]} 40. hxg4 {[%emt 0:00:05]} Rd7 {[%emt 0:00:25]} 41. Ke3 {[%emt 0:33:31]} Re7+ {[%emt 0:36:19]} 42. Be5 {[%emt 0:00:05]} Re6 {[%emt 0:00:18]} 43. c4 {[%emt 0:02:37]} Ba4 {[%emt 0:03:12]} (43... Bd7 $142 44. g5 Ke8) 44. Kd4 {[%emt 0:01:04]} Rb6 {[%emt 0:06:55]} 45. Rc7 {[%emt 0:01:08]} h5 {[%emt 0:02:31]} (45... Ke8 $142 46. f5 (46. Rxh7 Rxb4 47. Bd6 Rb1 $18) (46. Kc5 Re6 $18) 46... gxf5 47. gxf5 (47. Rxh7 fxg4 48. Rh4 Rxb4 $11) 47... Bd7) 46. gxh5 {[%emt 0:00:32]} gxh5 {[%emt 0:00:01]} 47. Rh7 {[%emt 0:00:19]} Be8 {[%emt 0:03:34]} 48. Bc7 $18 {[%emt 0:02:46]} (48. Rh8+ $142 Ke7 49. f5 Rxb4 50. f6+ Kf7 51. Kd5 (51. Rxh5 Ke6 $14)) 48... Rb7 {[%emt 0:01:37]} 49. Bd6+ {[%emt 0:35:33]} 1-0

[Event "DFMMLV 2024"]
[Site "Braunfels"]
[Date "2024.06.01"]
[Round "4.44"]
[White "Ulrich, Helena Irene"]
[Black "Mader, Lena"]
[Result "1/2-1/2"]
[ECO "B13"]
[WhiteElo "1819"]
[BlackElo "1902"]
[Annotator "RC"]
[PlyCount "54"]
[EventDate "2024.05.30"]
[EventType "team-tourn"]
[EventCountry "GER"]
[SourceTitle "playchess.com"]
[Source "ChessBase"]
[SourceQuality "1"]
[TimeControl "40/5400+30:1800+30"]

1. e4 {[%emt 0:00:03]} c6 {[%emt 0:00:04]} 2. d4 {[%emt 0:00:04]} d5 {[%emt 0:00:03]} 3. exd5 {[%emt 0:00:04]} cxd5 {[%emt 0:00:02]} 4. Bd3 {[%emt 0:00:06]} Nf6 {[%emt 0:00:24]} 5. c3 {[%emt 0:00:27]} Nc6 {[%emt 0:00:06]} 6. Bf4 {[%emt 0:00:07]} Bg4 {[%emt 0:07:55]} 7. Qb3 {[%emt 0:00:11]} Qd7 {[%emt 0:01:02]} 8. Nd2 {[%emt 0:00:38]} e6 {[%emt 0:02:25]} 9. Ngf3 {[%emt 0:00:33]} Bxf3 {[%emt 0:08:17]} 10. Nxf3 {[%emt 0:00:19]} Bd6 {[%emt 0:05:09]} 11. Bxd6 {[%emt 0:03:06]} Qxd6 {[%emt 0:00:06]} 12. O-O {[%emt 0:00:33]} O-O {[%emt 0:02:13]} 13. Rae1 {[%emt 0:03:05]} Qc7 {[%emt 0:14:49]} 14. Ne5 {[%emt 0:03:26]} Nxe5 {[%emt 0:00:59]} 15. dxe5 {[%emt 0:10:35]} Nd7 {[%emt 0:00:18]} 16. Qc2 {[%emt 0:01:55]} g6 {[%emt 0:02:34]} 17. Qe2 {[%emt 0:01:19]} Rac8 {[%emt 0:04:46]} 18. Kh1 {[%emt 0:02:19]} Nc5 {[%emt 0:10:57]} 19. Bb1 {[%emt 0:02:38]} a6 {[%emt 0:02:14]} 20. f4 {[%emt 1:09:02]} f5 {[%emt 0:02:37]} 21. exf6 {[%emt 0:00:00]} Rxf6 {[%emt 0:00:01]} 22. Qg4 {[%emt 0:00:00]} Rcf8 {[%emt 0:00:51]} 23. g3 {[%emt 0:00:00]} Qc6 {[%emt 0:05:23]} 24. Kg1 {[%emt 0:00:00]} Nd7 {[%emt 0:03:44]} 25. Qe2 {[%emt 0:00:00]} Qb6+ {[%emt 0:03:35]} 26. Kg2 {[%emt 0:00:00]} Qc6 {[%emt 0:00:15]} 27. Kg1 {[%emt 0:00:00]} Qb6+ {[%emt 0:00:08]} 1/2-1/2

[Event "DFMMLV 2024"]
[Site "Braunfels"]
[Date "2024.06.01"]
[Round "4.45"]
[White "Braje, Monika"]
[Black "Geletzke, Hannah"]
[Result "1/2-1/2"]
[ECO "B21"]
[WhiteElo "1861"]
[BlackElo "1753"]
[Annotator "NA RC"]
[PlyCount "72"]
[EventDate "2024.05.30"]
[EventType "team-tourn"]
[EventCountry "GER"]
[SourceTitle "playchess.com"]
[Source "ChessBase"]
[SourceQuality "1"]
[TimeControl "40/5400+30:1800+30"]

1. e4 {[%emt 0:00:01]} c5 {[%emt 0:00:19]} 2. d4 {[%emt 0:00:10]} cxd4 {[%emt 0:00:05]} 3. c3 {[%emt 0:00:04]} dxc3 {[%emt 0:00:08]} 4. Nxc3 {[%emt 0:00:02]} Nc6 {[%emt 0:00:14]} 5. Nf3 {[%emt 0:00:14]} e6 {[%emt 0:00:28]} 6. Bc4 {[%emt 0:00:17]} a6 {[%emt 0:00:13]} 7. a3 {[%emt 0:00:11]} Nge7 {[%emt 0:00:32]} 8. O-O {[%emt 0:00:08]} Ng6 {[%emt 0:00:43]} 9. Qe2 {[%emt 0:00:30]} Be7 {[%emt 0:01:02]} 10. Rd1 {[%emt 0:00:08]} O-O {[%emt 0:02:08]} 11. b4 {[%emt 0:00:26]} b5 {[%emt 0:01:31]} 12. Ba2 {[%emt 0:02:48]} Qc7 {[%emt 0:01:55]} 13. Bb2 {[%emt 0:00:37]} Bb7 {[%emt 0:01:53]} 14. Rac1 {[%emt 0:00:20]} Rfd8 {[%emt 0:03:57]} 15. g3 {[%emt 0:01:04]} Rac8 {[%emt 0:02:16]} 16. h4 {[%emt 0:04:16]} Qb8 {[%emt 0:10:48]} 17. Qe3 {[%emt 0:03:05]} Nce5 {[%emt 0:10:58]} 18. Nxe5 {[%emt 0:02:51]} Nxe5 {[%emt 0:01:20]} 19. Ne2 {[%emt 0:00:30]} Ng4 {[%emt 0:08:43]} 20. Qd3 {[%emt 0:08:16]} Rxc1 {[%emt 0:08:44]} 21. Rxc1 {[%emt 0:01:03]} Nf6 {[%emt 0:09:57]} 22. f3 {[%emt 0:00:35]} Bd6 {[%emt 0:02:23]} 23. Kf2 {[%emt 0:05:47]} Bc7 {[%emt 0:03:43]} 24. Bb1 {[%emt 0:03:00]} d5 {[%emt 0:06:36]} 25. Bxf6 {[%emt 0:11:04]} gxf6 {[%emt 0:02:55]} 26. exd5 {[%emt 0:01:36]} f5 {[%emt 0:03:11]} 27. Qe3 {[%emt 0:02:41]} Bxd5 {[%emt 0:06:34]} 28. Qg5+ {[%emt 0:00:28]} Kf8 {[%emt 0:00:59]} 29. Re1 {[%emt 0:07:42]} Qa8 {[%emt 0:02:30]} 30. Qe3 {[%emt 0:08:59]} Qb8 {[%emt 0:03:16]} 31. Kg2 {[%emt 0:00:29]} Qb6 {[%emt 0:01:57]} 32. Nd4 {[%emt 0:04:23]} Bb7 {[%emt 0:01:54]} 33. Qh6+ {[%emt 0:01:25]} Kg8 {[%emt 0:00:52]} 34. Qg5+ {[%emt 0:07:15]} Kh8 {[%emt 0:01:21]} 35. Qf6+ {[%emt 0:02:36]} Kg8 {[%emt 0:00:21]} 36. Qg5+ {[%emt 0:00:44]} Kh8 {[%emt 0:00:04]} 1/2-1/2

[Event "DFMMLV 2024"]
[Site "Braunfels"]
[Date "2024.06.01"]
[Round "4.46"]
[White "Loos, Tilda"]
[Black "Rotermund, Verena"]
[Result "1/2-1/2"]
[ECO "A30"]
[WhiteElo "1667"]
[BlackElo "1765"]
[Annotator "NA RC"]
[PlyCount "87"]
[EventDate "2024.05.30"]
[EventType "team-tourn"]
[EventCountry "GER"]
[SourceTitle "playchess.com"]
[Source "ChessBase"]
[SourceQuality "1"]
[TimeControl "40/5400+30:1800+30"]

1. Nf3 {[%emt 0:00:01]} Nf6 {[%emt 0:00:14]} 2. b3 {[%emt 0:00:04]} b6 {[%emt 0:03:44]} 3. g3 {[%emt 0:00:14]} Bb7 {[%emt 0:00:15]} 4. Bg2 {[%emt 0:00:07]} e6 {[%emt 0:01:20]} 5. Bb2 {[%emt 0:00:13]} Be7 {[%emt 0:00:38]} 6. d4 {[%emt 0:00:22]} d6 {[%emt 0:01:18]} 7. c4 {[%emt 0:01:09]} Nbd7 {[%emt 0:00:54]} 8. O-O {[%emt 0:00:27]} O-O {[%emt 0:01:01]} 9. e3 {[%emt 0:00:46]} c5 {[%emt 0:07:05]} 10. Nbd2 {[%emt 0:00:30]} Rc8 {[%emt 0:05:40]} 11. Rc1 {[%emt 0:00:35]} cxd4 {[%emt 0:05:57]} 12. exd4 {[%emt 0:00:25]} Re8 {[%emt 0:08:08]} 13. Qe2 {[%emt 0:01:44]} Bf8 {[%emt 0:06:25]} 14. Rfd1 {[%emt 0:02:40]} Qc7 {[%emt 0:04:35]} 15. Qd3 {[%emt 0:05:24]} e5 {[%emt 0:01:12]} 16. dxe5 {[%emt 0:00:30]} dxe5 {[%emt 0:00:50]} 17. Qf5 {[%emt 0:04:39]} g6 {[%emt 0:04:12]} 18. Qg5 {[%emt 0:05:02]} h6 {[%emt 0:03:02]} 19. Qe3 {[%emt 0:01:37]} Ng4 {[%emt 0:00:47]} 20. Qe2 {[%emt 0:01:21]} Bc5 {[%emt 0:02:18]} 21. Rf1 {[%emt 0:03:19]} e4 {[%emt 0:07:28]} 22. Nd4 {[%emt 0:02:45]} Ngf6 {[%emt 0:03:35]} 23. Nb5 {[%emt 0:03:02]} Qb8 {[%emt 0:02:02]} 24. Bd4 {[%emt 0:02:05]} a6 {[%emt 0:05:05]} 25. Bxc5 {[%emt 0:01:00]} Rxc5 {[%emt 0:01:10]} 26. Nc3 {[%emt 0:02:01]} Rce5 {[%emt 0:03:05]} 27. h3 {[%emt 0:02:40]} Nc5 {[%emt 0:03:39]} 28. Rc2 {[%emt 0:03:05]} Ne6 {[%emt 0:02:04]} 29. Qe3 {[%emt 0:01:26]} Ng5 {[%emt 0:02:01]} 30. Qxb6 {[%emt 0:02:28]} Nd7 {[%emt 0:01:30]} 31. Qe3 {[%emt 0:01:25]} Nf3+ {[%emt 0:01:44]} 32. Kh1 {[%emt 0:03:03]} Nxd2 {[%emt 0:01:57]} 33. Rxd2 {[%emt 0:01:06]} Nf6 {[%emt 0:01:27]} 34. Rfd1 {[%emt 0:07:28]} Qc8 {[%emt 0:02:18]} 35. Rd6 {[%emt 0:05:50]} Kg7 {[%emt 0:01:17]} 36. Qb6 {[%emt 0:10:34]} Rf5 {[%emt 0:04:12]} 37. g4 {[%emt 0:03:58]} Rf4 {[%emt 0:01:26]} 38. Qe3 {[%emt 0:02:45]} g5 {[%emt 0:00:47]} 39. Ne2 {[%emt 0:01:36]} Rf3 {[%emt 0:00:18]} 40. Bxf3 {[%emt 0:00:42]} exf3 {[%emt 0:00:28]} 41. Qd4 {[%emt 0:33:00]} fxe2+ {[%emt 0:30:32]} 42. Kh2 {[%emt 0:00:46]} Re6 {[%emt 0:00:00]} 43. Re1 {[%emt 0:00:00]} Qc7 {[%emt 0:00:00]} 44. c5 {[%emt 0:00:00]} 1/2-1/2

[Event "DFMMLV 2024"]
[Site "Braunfels"]
[Date "2024.06.01"]
[Round "4.49"]
[White "Peschel, Julia"]
[Black "Vogel, Heike"]
[Result "0-1"]
[ECO "B01"]
[WhiteElo "1736"]
[BlackElo "2095"]
[Annotator "NA RC"]
[PlyCount "54"]
[EventDate "2024.05.30"]
[EventType "team-tourn"]
[EventCountry "GER"]
[SourceTitle "playchess.com"]
[Source "ChessBase"]
[SourceQuality "1"]
[TimeControl "40/5400+30:1800+30"]

1. e4 {[%emt 0:00:02]} d5 {[%emt 0:01:09]} 2. exd5 {[%emt 0:00:10]} c6 {[%emt 0:01:53]} 3. dxc6 {[%emt 0:03:05]} Nxc6 {[%emt 0:02:42]} 4. Bc4 {[%emt 0:06:50]} Nf6 {[%emt 0:02:04]} 5. Nf3 {[%emt 0:01:34]} Bg4 {[%emt 0:04:13]} 6. h3 {[%emt 0:02:15] B01: Scandinavian Defence.} Bh5 {[%emt 0:01:46]} 7. c3 {[%emt 0:04:01]} e5 {[%emt 0:02:25]} 8. d3 {[%emt 0:02:59]} Qc7 {[%emt 0:12:09]} 9. O-O {[%emt 0:02:03]} O-O-O {[%emt 0:03:09]} 10. Qe2 {[%emt 0:05:01]} (10. Nbd2 $16) 10... e4 {[%emt 0:13:00]} 11. dxe4 {[%emt 0:01:55]} Ne5 {[%emt 0:00:45]} 12. Nbd2 {[%emt 0:12:04]} (12. g4 $11 Nxf3+ 13. Qxf3) 12... Bc5 {[%emt 0:14:04]} 13. Kh1 {[%emt 0:06:31]} Rhe8 {[%emt 0:04:40]} 14. Bb5 {[%emt 0:03:21]} Re6 {[%emt 0:15:36]} 15. b4 {[%emt 0:02:39]} Bb6 {[%emt 0:01:58]} 16. c4 {[%emt 0:03:17]} Nxf3 {[%emt 0:03:38]} 17. Nxf3 {[%emt 0:06:02]} Bd4 {[%emt 0:03:28]} 18. Rb1 {[%emt 0:01:26]} Nxe4 {[%emt 0:00:19]} 19. Be3 {[%emt 0:14:09]} Bxe3 {[%emt 0:00:46]} 20. Qc2 {[%emt 0:05:51]} Bxf3 {[%emt 0:02:31]} 21. gxf3 {[%emt 0:00:34]} Rd2 {[%emt 0:00:16]} 22. Qb3 {[%emt 0:06:10]} Qg3 {[%emt 0:03:40]} 23. Bd7+ {[%emt 0:02:16]} Kd8 {[%emt 0:02:12]} 24. Bxe6 {[%emt 0:04:15]} Qxf3+ {[%emt 0:00:15]} 25. Kh2 {[%emt 0:00:06]} Rxf2+ {[%emt 0:04:22]} 26. Rxf2 {[%emt 0:00:13]} Qg3+ {[%emt 0:00:00]} 27. Kh1 {[%emt 0:00:20]} Nxf2# {[%emt 0:00:00]} 0-1

[Event "DFMMLV 2024"]
[Site "Braunfels"]
[Date "2024.06.01"]
[Round "4.52"]
[White "Ramm, Madlen"]
[Black "Storkebaum, Ulrike"]
[Result "0-1"]
[ECO "C22"]
[WhiteElo "1830"]
[BlackElo "1811"]
[Annotator "NA RC"]
[PlyCount "112"]
[EventDate "2024.05.30"]
[EventType "team-tourn"]
[EventCountry "GER"]
[SourceTitle "playchess.com"]
[Source "ChessBase"]
[SourceQuality "1"]
[TimeControl "40/5400+30:1800+30"]

1. e4 {[%emt 0:00:03]} e5 {[%emt 0:00:04]} 2. d4 {[%emt 0:00:04]} exd4 {[%emt 0:00:06]} 3. Qxd4 {[%emt 0:00:04]} Nc6 {[%emt 0:00:12]} 4. Qe3 {[%emt 0:00:12]} d6 {[%emt 0:00:50]} 5. Bd2 {[%emt 0:00:37]} Be7 {[%emt 0:00:49]} 6. Nc3 {[%emt 0:00:13]} Nf6 {[%emt 0:00:25]} 7. h3 {[%emt 0:00:23]} O-O {[%emt 0:00:41]} 8. O-O-O {[%emt 0:00:15]} b6 {[%emt 0:01:51]} 9. f4 {[%emt 0:10:43]} Bd7 {[%emt 0:02:59]} 10. Be2 {[%emt 0:02:26]} Qc8 {[%emt 0:02:57]} 11. g4 {[%emt 0:01:00]} Kh8 {[%emt 0:02:46]} 12. g5 {[%emt 0:02:07]} Ng8 {[%emt 0:02:48]} 13. Nd5 {[%emt 0:04:10]} Be6 {[%emt 0:04:41]} 14. h4 {[%emt 0:09:14]} f5 {[%emt 0:04:41]} 15. gxf6 {[%emt 0:04:01]} Bxf6 {[%emt 0:05:05]} 16. Nxf6 {[%emt 0:01:00]} Nxf6 {[%emt 0:00:26]} 17. a3 {[%emt 0:01:05]} Qe8 {[%emt 0:04:33]} 18. f5 {[%emt 0:08:23]} Bd7 {[%emt 0:02:17]} 19. Nh3 {[%emt 0:05:39]} Qxe4 {[%emt 0:01:16]} 20. Bf3 {[%emt 0:05:34]} Qxe3 {[%emt 0:01:03]} 21. Bxe3 {[%emt 0:00:02]} Rae8 {[%emt 0:00:15]} 22. Bg5 {[%emt 0:07:03]} Ne5 {[%emt 0:00:49]} 23. Bg2 {[%emt 0:07:36]} Bxf5 {[%emt 0:02:58]} 24. Rdf1 {[%emt 0:16:43]} Nh5 {[%emt 0:03:27]} 25. Bd2 {[%emt 0:04:25]} Ng3 {[%emt 0:00:48]} 26. Ng5 {[%emt 0:01:08]} Nxh1 {[%emt 0:01:09]} 27. Rxh1 {[%emt 0:00:45]} h6 {[%emt 0:00:33]} 28. Nh3 {[%emt 0:03:24]} Nc4 {[%emt 0:04:14]} 29. Bb4 {[%emt 0:01:58]} a5 {[%emt 0:01:21]} 30. Bc3 {[%emt 0:00:03]} Bxh3 {[%emt 0:03:43]} 31. Bxh3 {[%emt 0:00:18]} Rf4 {[%emt 0:03:38]} 32. Rg1 {[%emt 0:00:33]} Re7 {[%emt 0:02:19]} 33. h5 {[%emt 0:00:21]} Rf3 {[%emt 0:01:13]} 34. Bg4 {[%emt 0:01:32]} Rf4 {[%emt 0:02:23]} 35. Bh3 {[%emt 0:01:23]} Ne5 {[%emt 0:02:32]} 36. b3 {[%emt 0:00:56]} Rf3 {[%emt 0:00:42]} 37. Bxe5 {[%emt 0:00:06]} Rxe5 {[%emt 0:01:05]} 38. Bg4 {[%emt 0:00:28]} Rf2 {[%emt 0:01:35]} 39. Kb2 {[%emt 0:00:49]} Rg5 {[%emt 0:01:03]} 40. Rg3 {[%emt 0:02:39]} Rf4 {[%emt 0:00:19]} 41. Rc3 {[%emt 0:30:05]} Rc5 {[%emt 0:32:34]} 42. Rxc5 {[%emt 0:01:05]} bxc5 {[%emt 0:00:43]} 43. Be6 {[%emt 0:00:00]} Kh7 {[%emt 0:00:00]} 44. Bc4 {[%emt 0:00:00]} g5 {[%emt 0:00:00]} 45. hxg6+ {[%emt 0:00:00]} Kxg6 {[%emt 0:00:00]} 46. Kc3 {[%emt 0:00:00]} h5 {[%emt 0:00:00]} 47. Kd3 {[%emt 0:00:00]} h4 {[%emt 0:00:00]} 48. Ke3 {[%emt 0:00:00]} Kg5 {[%emt 0:00:00]} 49. Be6 {[%emt 0:00:00]} Rf8 {[%emt 0:00:00]} 50. Bh3 {[%emt 0:00:00]} d5 {[%emt 0:00:00]} 51. c3 {[%emt 0:00:00]} Re8+ {[%emt 0:00:00]} 52. Kd3 {[%emt 0:00:00]} Kf4 {[%emt 0:00:00]} 53. Bg2 {[%emt 0:00:00]} Re3+ {[%emt 0:00:00]} 54. Kd2 {[%emt 0:00:00]} d4 {[%emt 0:00:00]} 55. cxd4 {[%emt 0:00:00]} cxd4 {[%emt 0:00:00]} 56. Kc2 {[%emt 0:00:00]} Re2+ {[%emt 0:38:37]} 0-1